Cogmind - Beta 11.1 @@@ ROGUE MODE // 2022.10.04 @ 16:36:27 Player: Zirov Result: Self-destructed Performance ------------- Evolutions (2) 1000 Regions Visited (5) 1000 Robots Destroyed (23) 115 Value Destroyed (440) 440 Prototype IDs (27) 540 Alien Tech Used (0) 0 Bonus (349) 349 TOTAL SCORE: 3444 Bonus ------- Follower Combat Kills 49 Aligned with FarCom 300 Cogmind --------- Core Integrity 470/550 Matter 267/300 Energy 160/160 System Corruption 0% Temperature Warning (371) Movement Core (300) Ox5 Location -8/Materials Parts ------- > --- POWER (1) -------- Light Nuclear Core > --- PROPULSION (3) --- (None) > --- UTILITY (3) ------ Medium Storage Unit Improved Targeting Computer > --- WEAPON (4) ------- Beam Cannon > --- INVENTORY (10) --- Improved Heat Sink Improved Heat Sink High-capacity Matter Pod (200) Improved Targeting Computer Long-range Tractor Beam AWS/Autocannon Rocket Launcher Peak State ------------ > --- POWER ------------ Light Nuclear Core > --- PROPULSION ------- Light Treads > --- UTILITY ---------- Medium Storage Unit Improved Targeting Computer Long-range Tractor Beam > --- WEAPON ----------- Rocket Launcher > --- INVENTORY -------- Improved Heat Sink Improved Heat Sink High-capacity Matter Pod Improved Targeting Computer Beam Cannon Light Cannon Light Cannon AWS/Autocannon [Rating: 16] Favorites ----------- Power Ion Engine Engine Ion Engine Power Core Light Nuclear Core Propulsion Light Treads Treads Light Treads Utility Improved Targeting Computer Device Terrain Scanner Storage Medium Storage Unit Processor Improved Targeting Computer Weapon Light Cannon Energy Gun Medium Laser Energy Cannon Beam Cannon Ballistic Cannon Light Cannon Launcher Rocket Launcher Build | -11 -10 -10 -10 -9 -8 ------- Run | Scr Mat Min Exi Min Mat Slots Evolved 4 | . . . . . 4 Power . | . . . . . . Propulsion 1 | . . . . . 1 Utility 1 | . . . . . 1 Weapon 2 | . . . . . 2 Parts Attached 19 | 7 4 1 . 1 6 Power 2 | 1 . . . . 1 Engine 1 | 1 . . . . . Core 1 | . . . . . 1 Reactor . | . . . . . . Propulsion 2 | 2 . . . . . Treads 2 | 2 . . . . . Leg . | . . . . . . Wheel . | . . . . . . Hover . | . . . . . . Flight . | . . . . . . Utility 5 | 1 3 . . . 1 Device 2 | . 1 . . . 1 Storage 2 | 1 1 . . . . Processor 1 | . 1 . . . . Hackware . | . . . . . . Protection . | . . . . . . Artifact . | . . . . . . Weapon 10 | 3 1 1 . 1 4 Energy Gun 4 | 3 . . . . 1 Energy Cannon 1 | . . . . . 1 Ballistic Gun . | . . . . . . Ballistic Cannon 4 | . 1 1 . . 2 Launcher 1 | . . . . 1 . Special Weapon . | . . . . . . Impact Weapon . | . . . . . . Slashing Weapon . | . . . . . . Piercing Weapon . | . . . . . . Special Melee Weapon . | . . . . . . Unidentified Prototypes . | . . . . . . Parts Lost 6 | . . . . 2 4 Power 1 | . . . . 1 . Propulsion 2 | . . . . 1 1 Utility . | . . . . . . Weapon 3 | . . . . . 3 Highest Loss Streak 3 | . . . . 2 3 To Critical Strikes . | . . . . . . Average Slot Usage (%) 94 | . 99 100 100 82 51 Engine 12 | . 14 14 14 5 . Treads 25 | . 28 28 28 19 7 Storage 13 | . 14 14 14 14 9 Processor 13 | . 12 14 14 14 9 Energy Gun 8 | . 16 8 . . 2 Ballistic Cannon 17 | . 11 19 28 19 9 Launcher 1 | . . . . 8 2 Naked Turns . | . . . . . . Heaviest Build 22 | 14 20 21 21 22 21 Greatest Support 40 | 40 40 40 40 40 20 Greatest Overweight (x) 3 | 3 . . . 1 1 Average Overweight (x) . | . . . . . . Largest Inventory Capacity 10 | 8 10 10 10 10 10 Average Capacity 9 | 7 8 10 10 10 10 Most Carried 10 | 1 8 9 9 10 10 Average Carried 7 | . 7 8 8 9 9 Final Capacity 10 | 8 10 10 10 10 10 Final Carried 10 | 1 8 8 9 10 9 Class Distribution -------------------- 60% | Mutant 39% | Commander-Mutant Dominant Class ---------------- Mutant | -10/Materials Commander-Mutant | -10/Mines Commander-Mutant | -10/Exiles Mutant | -9/Mines Mutant | -8/Materials Resources | -11 -10 -10 -10 -9 -8 ----------- Run | Scr Mat Min Exi Min Mat Matter Collected 901 | 195 259 204 . 156 87 Remotely . | . . . . . . Salvage Created 614 | . 296 67 . 59 192 Parts 32 | . 17 9 . 3 3 Haulers Intercepted 1 | . 1 . . . . Recyclers Shooed 4 | . 2 . . 1 1 Parts Field Recycled . | . . . . . . Retrieved Matter . | . . . . . . Parts Self-Destructed . | . . . . . . Prevented . | . . . . . . Kills | -11 -10 -10 -10 -9 -8 ------- Run | Scr Mat Min Exi Min Mat Combat Hostiles Destroyed 20 | . 8 5 . 5 2 Guns 6 | . 4 1 . . 1 Cannons 12 | . 4 4 . 3 1 AOE 2 | . . . . 2 . Classes Destroyed 7 | . 5 . . 1 1 Hauler 1 | . 1 . . . . Recycler 3 | . 1 . . . 2 Watcher 2 | . 2 . . . . Swarmer 10 | . 6 4 . . . Grunt 6 | . 2 1 . 2 1 Sentry 1 | . . . . . 1 Assembled 3 | . . . . 3 . Best Kill Streak 3 | . 3 2 . 3 3 Combat Bots Only 3 | . 3 2 . 3 1 Max Kills in Single Turn 2 | . 1 1 . 2 1 Gunslinging . | . . . . . . Exploded 2 | . . . . 2 . Melee . | . . . . . . Uniques/NPCs Destroyed . | . . . . . . Combat | -11 -10 -10 -10 -9 -8 -------- Run | Scr Mat Min Exi Min Mat Damage Taken 1112 | . 224 146 . 340 402 Core 260 | . 59 29 . 92 80 Absorbed by Shields . | . . . . . . Core Remaining (%) 64 | 100 . . . 28 . Volleys Fired 74 | . 29 15 . 10 20 Largest 2 | . 2 2 . 2 2 Hottest 116 | . 90 85 . 70 116 Shots Fired 134 | . 58 30 . 13 33 Gun 45 | . 31 4 . . 10 Cannon 86 | . 27 26 . 10 23 Launcher 3 | . . . . 3 . Special . | . . . . . . Kinetic 83 | . 27 26 . 10 20 Thermal 48 | . 31 4 . . 13 Explosive 3 | . . . . 3 . Electromagnetic . | . . . . . . Robot Hit Streak 10 | . 6 4 . 4 10 Robot Miss Streak 8 | . 8 4 . 2 2 Penetration Max . | . . . . . . Secondary Targets . | . . . . . . Shots Hit Robots 75 | . 34 16 . 7 18 Core Hits 36 | . 14 5 . 9 8 Critical Kills . | . . . . . . Critical Parts Destroyed . | . . . . . . Critical Strikes 4 | . 2 1 . . 1 Burn 3 | . 2 . . . 1 Blast 1 | . . 1 . . . Melee Attacks . | . . . . . . Impact . | . . . . . . Slashing . | . . . . . . Piercing . | . . . . . . Sneak Attacks . | . . . . . . Combat Hostiles . | . . . . . . Follow-up Attacks . | . . . . . . Damage Inflicted 1488 | . 545 287 . 339 317 Guns 347 | . 234 26 . . 87 Cannons 902 | . 286 250 . 136 230 Explosions 203 | . . . . 203 . Melee . | . . . . . . Ramming 36 | . 25 11 . . . Kinetic 867 | . 286 250 . 136 195 Thermal 382 | . 234 26 . . 122 Explosive 203 | . . . . 203 . Electromagnetic . | . . . . . . Impact . | . . . . . . Slashing . | . . . . . . Piercing . | . . . . . . Highest Corruption . | . . . . . . Average Corruption . | . . . . . . Corruption Purged . | . . . . . . Corruption Blocked . | . . . . . . Overload Shots . | . . . . . . Overflow Damage 14 | . . 14 . . . Projectiles 14 | . . 14 . . . Explosions . | . . . . . . Melee . | . . . . . . Knockbacks 7 | . 1 4 . 1 1 Impact . | . . . . . . Kinetic 7 | . 1 4 . 1 1 Secondary . | . . . . . . Self-Inflicted Damage 77 | . . . . 77 . Shots 2 | . . . . 2 . Rammed 7 | . 4 3 . . . Targets Rammed 8 | . 5 3 . . . Kicked . | . . . . . . Crushed 1 | . 1 . . . . Highest Temperature 371 | . 144 61 . 57 371 Average Temperature 48 | . 45 21 . 33 103 Received Heat Transfer 484 | . 48 63 . 130 243 Siege Activations . | . . . . . . Robots Corrupted . | . . . . . . Combat Hostiles . | . . . . . . Parts Fried . | . . . . . . Impact Corruptions . | . . . . . . Robots Melted . | . . . . . . Combat Hostiles . | . . . . . . Parts Melted 2 | . 1 . . . 1 Heat Transferred 1271 | . 827 74 . . 370 Parts Sabotaged . | . . . . . . Parts Stolen . | . . . . . . Parts Stripped . | . . . . . . Power Chain Reactions . | . . . . . . Missiles Intercepted . | . . . . . . Alert | -11 -10 -10 -10 -9 -8 ------- Run | Scr Mat Min Exi Min Mat Peak Influence 154 | . 147 154 . 87 50 Initial 34 | . . 34 . . . Average 59 | . 52 91 . 50 9 Maximum Alert Level . | . . . . . . Low Security (%) 100 | 100 100 100 . 100 100 Level 1 . | . . . . . . Level 2 . | . . . . . . Level 3 . | . . . . . . Level 4 . | . . . . . . Level 5 . | . . . . . . High Security . | . . . . . . Max Security . | . . . . . . Squads Dispatched 1 | . . . . . 1 Investigation . | . . . . . . Extermination . | . . . . . . Reinforcement 1 | . . . . . 1 Assault . | . . . . . . Garrison . | . . . . . . Intercept . | . . . . . . Searches Triggered . | . . . . . . Construction Impeded . | . . . . . . Haulers Reinforced . | . . . . . . Active Scanning Responses . | . . . . . . Cargo Convoy Interrupts . | . . . . . . Stealth | -11 -10 -10 -10 -9 -8 --------- Run | Scr Mat Min Exi Min Mat Distress Signals 1 | . . . . . 1 Communications Jammed . | . . . . . . Distress Signals . | . . . . . . Times Spotted 39 | . 17 9 . 8 5 Peak Tracking Total 6 | . 4 3 . 6 3 Tactical Retreats 4 | . 1 1 . 2 . Traps | -11 -10 -10 -10 -9 -8 ------- Run | Scr Mat Min Exi Min Mat Traps Triggered . | . . . . . . Indirectly . | . . . . . . Trap Hack Attempts . | . . . . . . Triggered . | . . . . . . Disarmed . | . . . . . . Reprogrammed . | . . . . . . Reused . | . . . . . . Traps Extracted . | . . . . . . Installed . | . . . . . . Triggered . | . . . . . . Machines | -11 -10 -10 -10 -9 -8 ---------- Run | Scr Mat Min Exi Min Mat Machines Disabled . | . . . . . . Max in Single Turn . | . . . . . . Machines Sabotaged . | . . . . . . Garrisons Compromised . | . . . . . . Overloaded Fab Kills . | . . . . . . Hacking | -11 -10 -10 -10 -9 -8 --------- Run | Scr Mat Min Exi Min Mat Machines Accessed 9 | . 7 . 1 . 1 Terminals 8 | . 7 . . . 1 Fabricators . | . . . . . . Repair Stations . | . . . . . . Recycling Units . | . . . . . . Scanalyzers . | . . . . . . Garrison Access . | . . . . . . Total Hacks 25 | . 21 . 1 . 3 Successful 16 | . 14 . 1 . 1 Failed 9 | . 7 . . . 2 Catastrophic 2 | . 1 . . . 1 Database Lockouts . | . . . . . . Manual 9 | . 7 . 1 . 1 Terminals 24 | . 21 . . . 3 Fabricators . | . . . . . . Repair Stations . | . . . . . . Recycling Units . | . . . . . . Scanalyzers . | . . . . . . Garrison Access . | . . . . . . Terminal Hacks 14 | . 12 . 1 . 1 Record 1 | . 1 . . . . Prototype ID Bank 3 | . 3 . . . . Branch Access Points 1 | . 1 . . . . Emergency Access Points 1 | . 1 . . . . Terminal Index 1 | . 1 . . . . Locate Traps 2 | . 2 . . . . Hauler Manifests 1 | . 1 . . . . Registered Components 2 | . 1 . . . 1 Zone Layout 1 | . 1 . . . . EX-Prototype ID Bank 1 | . . . 1 . . Fabricator Hacks . | . . . . . . Repair Station Hacks . | . . . . . . Recycling Unit Hacks . | . . . . . . Scanalyzer . | . . . . . . Garrison Access Hacks . | . . . . . . Unauthorized Hacks 2 | . 2 . . . . Terminals 2 | . 2 . . . . Assimilate 1 | . 1 . . . . Operators 1 | . 1 . . . . Fabricators . | . . . . . . Repair Stations . | . . . . . . Recycling Units . | . . . . . . Scanalyzers . | . . . . . . Garrison Access . | . . . . . . Data Cores Recovered . | . . . . . . Used . | . . . . . . Hacking Detections 7 | . 6 . . . 1 Full Trace Events 1 | . 1 . . . . Feedback Events . | . . . . . . Feedback Blocked . | . . . . . . Robot Schematics Acquired . | . . . . . . Robots Built . | . . . . . . Authchips . | . . . . . . Time . | . . . . . . Total Robot Build Rating . | . . . . . . Part Schematics Acquired . | . . . . . . Parts Built . | . . . . . . Authchips . | . . . . . . Time . | . . . . . . Total Part Build Rating . | . . . . . . Parts Repaired . | . . . . . . Time . | . . . . . . Parts Recycled . | . . . . . . Recycled Matter . | . . . . . . Retrieved Matter . | . . . . . . Retrieved Components . | . . . . . . Parts Scanalyzed . | . . . . . . Part Schematics Acquired . | . . . . . . Parts Damaged . | . . . . . . Bothacking | -11 -10 -10 -10 -9 -8 ------------ Run | Scr Mat Min Exi Min Mat Used RIF Installer . | . . . . . . Robots Hacked . | . . . . . . Non-combat . | . . . . . . Combat . | . . . . . . Robot Hacks Applied . | . . . . . . Relay Couplers Released . | . . . . . . Fabnet Peak Effective % . | . . . . . . Robots Rewired . | . . . . . . Allies Hacked . | . . . . . . Hacks Repelled . | . . . . . . Allies | -11 -10 -10 -10 -9 -8 -------- Run | Scr Mat Min Exi Min Mat Total Allies 4 | . 1 3 . . . Largest Group 4 | . 1 4 4 4 . Highest-Rated Group 50 | . 10 50 50 50 . Highest-Rated Ally 16 | . 10 16 16 16 . Total Orders . | . . . . . . Ally Attacks 35 | . . 17 . 18 . Total Damage 438 | . . 196 . 242 . Kills 4 | . . 3 . 1 . Allies Corrupted . | . . . . . . Allies Melted 1 | . . . . 1 . Intel | -11 -10 -10 -10 -9 -8 ------- Run | Scr Mat Min Exi Min Mat Robot Analysis Total . | . . . . . . Derelict Logs Recovered 2 | . . 2 . . . Drone Launches . | . . . . . . Drone Recoveries . | . . . . . . Exploration | -11 -10 -10 -10 -9 -8 ------------- Run | Scr Mat Min Exi Min Mat Turns Passed 3290 | 66 1316 815 471 460 162 Spaces Moved 1712 | 34 605 468 294 271 40 Core 6 | 6 . . . . . Treads 1706 | 28 605 468 294 271 40 Legs . | . . . . . . Wheels . | . . . . . . Hover . | . . . . . . Flight . | . . . . . . Fastest Speed 50 | 50 160 160 160 160 160 Average Speed 160 | 159 160 160 160 160 190 Slowest Speed 240 | 200 160 160 160 240 240 Overloaded Moves . | . . . . . . Propulsion Burnouts . | . . . . . . Robots Hopped . | . . . . . . Cave-ins Triggered . | . . . . . . Exploration Rate (%) 44 | 3 85 70 62 40 4 Regions Visited 5 Branch Regions 3 Pre-discovered Areas 1 | . . 1 . . . Known Exits Taken 1 | . 1 . . . . Unknown Exits Taken 4 | 1 . 1 1 1 . Scrap Searched 1 | . . 1 . . . Spaces Dug . | . . . . . . Terrain Destroyed 34 | . . . . 34 . Melee . | . . . . . . Projectile . | . . . . . . AOE 34 | . . . . 34 . Terrain Rammed . | . . . . . . Walls Destroyed . | . . . . . . Machines Disabled . | . . . . . . Actions | -11 -10 -10 -10 -9 -8 --------- Run | Scr Mat Min Exi Min Mat Total 2114 | 44 895 503 296 284 92 Wait 275 | . 235 16 . . 24 Move 1707 | 33 604 467 293 270 40 Hop . | . . . . . . Pick Up 17 | 2 12 . 1 2 . Fast Attach 9 | 6 1 . . . 2 Attach 5 | 1 . 1 . . 3 Detach 4 | 1 . 1 . . 2 Swap 5 | . 3 . . 1 1 Drop 10 | 1 6 . 2 1 . Fire 74 | . 29 15 . 10 20 Melee . | . . . . . . Ram . | . . . . . . Kick . | . . . . . . Crush 8 | . 5 3 . . . Escape Stasis . | . . . . . . Rewire . | . . . . . . Trap . | . . . . . . Miscellaneous . | . . . . . . Route ------- -11/Scrapyard -10/Materials (discovered 4 exits: [*Mat x2] / *Min x2) -10/Mines (discovered 3 exits: [*Mat x2] / *Exi) -10/Exiles (discovered 2 exits: [*Min x2]) -9/Mines -8/Materials (discovered 1 exit: Sto) History --------- Turn | Location | Event 23 | -11/Scrapyard | Discovered new exit (range 15) 67 | -11/Scrapyard | Entered Materials 204 | -10/Materials | Identified exit to Mines 319 | -10/Materials | Build established: Mutant 395 | -10/Materials | Discovered new exit (range 8) 1200 | -10/Materials | Discovered new exit (range 16) 1383 | -10/Materials | Entered Mines 1383 | -10/Mines | Accompanied by 1 ally 1387 | -10/Mines | Assisted by bots powering up and referring to "LRC-V3" 1391 | -10/Mines | Discovered new exit (range 15) 1465 | -10/Mines | Learned location of Storage (-8) 1686 | -10/Mines | Build established: Commander-Mutant 1708 | -10/Mines | Deemed a non-threat by the Exiles lab entrance 1708 | -10/Mines | Discovered new exit (range 5) 1857 | -10/Mines | Discovered new exit (range 13) 2075 | -10/Mines | Learned 2 Materials zone layouts 2198 | -10/Mines | Entered Exiles 2198 | -10/Exiles | Accompanied by 4 allies 2219 | -10/Exiles | Discovered new exit (range 15) 2242 | -10/Exiles | Met 8R-AWN 2266 | -10/Exiles | Met EX-HEX 2309 | -10/Exiles | Met EX-BIN 2331 | -10/Exiles | Aligned with FarCom system 2333 | -10/Exiles | Given EX-Vault access code 2373 | -10/Exiles | Opened EX-Vault 2403 | -10/Exiles | Found AWS/Autocannon 2440 | -10/Exiles | Warned to stay clear of 0b10 Research branches 2490 | -10/Exiles | Met EX-DEC 2655 | -10/Exiles | Discovered new exit (range 10) 2669 | -10/Exiles | Left Exiles lab with AWS/Autocannon 2669 | -10/Exiles | Entered Mines 2669 | -9/Mines | Accompanied by 4 allies 2730 | -9/Mines | Received a Rocket Launcher from a helpful Derelict 2797 | -9/Mines | Assembled infested the area 2861 | -9/Mines | Core integrity fell below 50% 2979 | -9/Mines | Build established: Mutant 3124 | -9/Mines | Discovered new exit (range 3) 3129 | -9/Mines | Entered Materials 3129 | -8/Materials | Evolved 4 slots: Propulsion x1, Utility x1, Weapon x2 3130 | -8/Materials | Identified exit to Storage 3291 | -8/Materials | Self-destructed Last Messages --------------- M007. 03229_ Lgt. Cannon destroyed. 03241_ Y-45 Defender destroyed. 03243_ Acquired 26 matter. 03247_ Acquired Beam Rifle. 03250_ R-06 Scavenger collects Heat Sink. 03251_ Acquired 9 matter. 03254_ R-06 Scavenger destroyed. 03257_ Acquired 52 matter. 03262_ R-06 Scavenger knocked back. 03265_ R-06 Scavenger destroyed. 03274_ Lgt. Treads destroyed. 03276_ Critical hit (Burn: +37). 03276_ Lgt. Cannon destroyed. 03278_ Critical hit (Burn: +37). 03279_ G-47 Trooper suffers critical hit (Burn). 03280_ Critical hit (Burn: +37). 03288_ Particle Gun melted. 03288_ G-47 Trooper destroyed. 03290_ Beam Rifle destroyed. Map ----- +----------------------------------------------------+ | | | | | | | | | | | | | | | | | | | | | | | | | ???????????????????????????????????????? | | ???????????????????????????????????????? | | ???????????????????????????????????????? | | ???????????????????????????????????????? | | ???????????????????????????????????????? | | ??????????????????###########??????????? | | ??????????????????# """"" #??????????? | | ??????????????????# """"" #??????????? | | ??????????######### """"" #??????????? | | ??????????# % # #??????????? | | ??????????# + #??????????? | | ??????????# ! # ""T"" #??????????? | | ??????????##### # """"" #??????????? | | ??????????????#@ # #??????????? | | ??????????????# ###########??????????? | | ??????????????#% #????????????????????? | | ??????????????# #????????????????????? | | ??????????????#= #????????????????????? | | ??????????????#% #????????????????????? | | ??????????????#% #????????????????????? | | ??????????????# #????????????????????? | | ?????Y????????# #????????????????????? | | ??????????????# ????????????????????? | | ?????????????? g ???????????????????? | | ?????????????? g% ??????????????????? | | ?????????????? ####?????????????????? | | ??????????????# % #????????????????????? | | ??????????????? u#????????????????????? | | ??????????????? #????????????????????? | | ??????????????? #????????????????????? | | ??????????????? #????????????????????? | | ??????????????? #????????????????????? | | ??????????????? #????????????????????? | | ??????????????? ?????????????????????? | | ???????????????????????????????????????? | | ???????????????????????????????????????? | | ???????????????????????????????????????? | | ???????????????????????????????????????? | +----------------------------------------------------+ Best States ------------- Heat Dissipation 31 Energy Generation 14 Energy Capacity 250 Matter Stores 300 Matter Capacity 300 Sight Range 16 Terrain Scan Range 14 Terrain Scan Density 10 Evasion (%) 40 Targeting Accuracy 6 Recoil Reduction 2 Item Schematics ----------------- None Robot Schematics ------------------ None Fabricated ------------ Nothing Alien Tech Used ----------------- None Achievements -------------- None Challenges ------------ None Game ------ Seed GravitonElectronDevice Manual? 0 Play Time 00:23:46 Cumulative 31.0 hours Start 2022.10.03 @ 04:44:59 End 2022.10.04 @ 16:36:27 Sessions 2 Manual Loads 0 Difficulty Rogue Special Mode None Game No. 31 Rogue 31 Adventurer 0 Explorer 0 Win Type - Total 0 Types 0/0/0/0/0/0/0/0/0 Lore% 23 Gallery% 28 Achievement% 22 Wizard Run 0 Options --------- ASCII 1 Keyboard 1 Movement Numpad Keybinds 0 Fullscreen 1 Font 18/SmallcapsGlow Map View 76x50 Tactical HUD 1 Map Filters NONE Filters NONE Steam 1 RUN: 82df9a46-9504-4219-ada4-3531494b74a9